Cogmind - Beta 16 @@@ ROGUE MODE // 2025.11.30 @ 23:20:29 Player: Petvaria Result: Destroyed by 5X-SH3(R) with Subdweller Machine Gun Performance ------------- Evolutions (0) 0 Regions Visited (2) 400 Robots Destroyed (19) 95 Value Destroyed (479) 479 Prototype IDs (0) 0 Alien Tech Used (0) 0 Bonus (0) 0 TOTAL SCORE: 974 Bonus ------- None Cogmind --------- Core Integrity 0/250 Matter 277/300 Energy 100/100 System Corruption 0% Temperature Cool (0) Movement Core (750) Ox14 Location -10/Subcaves Parts ------- > --- POWER (1) -------- (None) > --- PROPULSION (2) --- (None) > --- UTILITY (2) ------ High-capacity Storage Unit > --- WEAPON (2) ------- Autogun > --- INVENTORY (20) --- Compact Wheel Small Storage Unit Targeting Computer Improved Targeting Computer Improved Targeting Computer Tractor Beam Riot Gun Small Laser Small Laser Small Laser Particle Gun Makeshift Laser Light Assault Rifle Light Assault Rifle Autogun Autogun Subdweller Machine Gun Barrage Gun Battle Cannon Dirty Datajack (20) Peak State ------------ > --- POWER ------------ Ion Engine > --- PROPULSION ------- Light Treads Light Treads > --- UTILITY ---------- High-capacity Storage Unit Seismic Detector > --- WEAPON ----------- Particle Gun Autogun > --- INVENTORY -------- Compact Wheel Compact Wheel Small Storage Unit Targeting Computer Improved Targeting Computer Improved Targeting Computer Tractor Beam Small Laser Small Laser Small Laser Light Assault Rifle Light Assault Rifle Autogun Autogun Autogun [Rating: 11] Favorites ----------- Power Ion Engine Engine Ion Engine Propulsion Compact Wheel Treads Light Treads Wheel Compact Wheel Utility Seismic Detector Device Seismic Detector Storage High-capacity Storage Unit Weapon Autogun Energy Gun Particle Gun Ballistic Gun Autogun Ballistic Cannon Battle Cannon Build | -11 -10 -10 ------- Run | Yrd Mat Sub Slots Evolved . | . . . Power . | . . . Propulsion . | . . . Utility . | . . . Weapon . | . . . Parts Attached 17 | 7 4 6 Power 2 | 1 1 . Engine 2 | 1 1 . Core . | . . . Reactor . | . . . Propulsion 3 | 2 . 1 Treads 2 | 2 . . Leg . | . . . Wheel 1 | . . 1 Hover . | . . . Flight . | . . . Utility 3 | 2 1 . Device 1 | 1 . . Storage 2 | 1 1 . Processor . | . . . Hackware . | . . . Protection . | . . . Artifact . | . . . Weapon 9 | 2 2 5 Energy Gun 3 | 1 2 . Energy Cannon . | . . . Ballistic Gun 5 | 1 . 4 Ballistic Cannon 1 | . . 1 Launcher . | . . . Special Weapon . | . . . Impact Weapon . | . . . Slashing Weapon . | . . . Piercing Weapon . | . . . Special Melee Weapon . | . . . Unidentified Prototypes . | . . . Parts Lost 9 | . 2 7 Power 2 | . 1 1 Propulsion 3 | . . 3 Utility 1 | . . 1 Weapon 3 | . 1 2 Highest Loss Streak 3 | . 2 3 To Critical Strikes . | . . . Average Backups 15 | 2 10 17 Power . | . . . Propulsion 1 | 1 2 1 Utility 4 | . 3 5 Weapon 9 | . 4 10 Tool/Special . | . . . Unused Backups 15 | . . 15 Power . | . . . Propulsion 1 | . . 1 Utility 4 | . . 4 Weapon 9 | . . 9 Tool/Special 1 | . . 1 Average Slot Usage (%) 79 | . 96 74 Engine 3 | . 10 1 Treads 7 | . 28 2 Wheel 10 | . . 13 Device 14 | . 14 14 Storage 14 | . 14 14 Energy Gun 6 | . 17 3 Ballistic Gun 20 | . 10 23 Peak Build Rating 11 | 7 10 11 Average Rating 9 | 5 8 9 On Entrance 5 | . 7 10 Avg Prop Armor Cover (%) 12 | . . 12 Naked Turns . | . . . Heaviest Build 52 | 14 51 52 Greatest Support 40 | 40 40 40 Greatest Overweight (x) 3 | . 1 3 Average Overweight (x) 1 | . . 2 Largest Inventory Capacity 20 | 8 20 20 Average Capacity 19 | 7 18 20 Most Carried 20 | 6 17 20 Average Carried 15 | 2 11 17 Final Capacity 20 | 8 20 20 Final Carried 20 | 5 15 20 Class Distribution -------------------- 100% | Mutant Dominant Class ---------------- Mutant | -10/Materials Mutant | -10/Subcaves Resources | -11 -10 -10 ----------- Run | Yrd Mat Sub Matter Collected 598 | 288 131 179 Remotely . | . . . Salvage Created 659 | 141 312 206 Parts 38 | 9 21 8 Haulers Intercepted . | . . . Recyclers Shooed 1 | 1 . . Parts Field Recycled . | . . . Retrieved Matter . | . . . Parts Self-Destructed . | . . . Prevented . | . . . Parts Restored . | . . . Kills | -11 -10 -10 ------- Run | Yrd Mat Sub Combat Hostiles Destroyed 14 | . 8 6 Guns 13 | . 8 5 Cannons 1 | . . 1 Classes Destroyed 7 | 2 4 1 Worker 1 | . 1 . Builder 1 | . 1 . Tunneler 2 | 2 . . Recycler 1 | 1 . . Swarmer 3 | . 3 . Grunt 5 | . 5 . Subdweller 6 | . . 6 Best Kill Streak 3 | 2 3 2 Combat Bots Only 3 | . 3 2 Max Kills in Single Turn 2 | 1 2 1 Gunslinging . | . . . Exploded . | . . . Melee . | . . . Uniques/NPCs Destroyed . | . . . Combat | -11 -10 -10 -------- Run | Yrd Mat Sub Hostile Shots Fired 106 | . 63 43 Missed 23 | . 11 12 Hits 83 | . 52 31 Projectile 83 | . 52 31 AOE 4 | . . 4 Critical Strikes 1 | . 1 . Damage Taken 1299 | . 544 755 Core 259 | . 65 194 Absorbed by Shields . | . . . Core Remaining (%) 100 | 100 . . Volleys Fired 88 | 6 40 42 Largest 2 | 2 2 2 Hottest 105 | 60 105 98 Shots Fired 158 | 12 78 68 Gun 151 | 12 78 61 Cannon 7 | . . 7 Launcher . | . . . Special . | . . . Kinetic 92 | 6 37 49 Thermal 66 | 6 41 19 Explosive . | . . . Electromagnetic . | . . . Robot Hit Streak 18 | 3 7 18 Robot Miss Streak 5 | 2 5 2 Penetration Max . | . . . Secondary Targets 3 | . 3 . Max Gunslinging Chain 1 | . 1 . Shots Hit Robots 92 | 6 45 41 Core Hits 32 | 4 16 12 Critical Kills . | . . . Critical Parts Destroyed 1 | . . 1 Critical Strikes 3 | . . 3 Burn 1 | . . 1 Destroy 2 | . . 2 Melee Attacks . | . . . Impact . | . . . Slashing . | . . . Piercing . | . . . Sneak Attacks . | . . . Combat Hostiles . | . . . Follow-up Attacks . | . . . Damage Inflicted 1382 | 83 580 719 Guns 1246 | 83 577 586 Cannons 133 | . . 133 Explosions . | . . . Melee . | . . . Ramming 3 | . 3 . Kinetic 809 | 60 253 496 Thermal 570 | 23 324 223 Explosive . | . . . Electromagnetic . | . . . Impact . | . . . Slashing . | . . . Piercing . | . . . Highest Corruption . | . . . Average Corruption . | . . . Corruption Purged . | . . . Corruption Blocked . | . . . Overload Shots . | . . . Overflow Damage . | . . . Projectiles . | . . . Explosions . | . . . Melee . | . . . Knockbacks 3 | . . 3 Impact . | . . . Kinetic 3 | . . 3 Secondary . | . . . Self-Inflicted Damage . | . . . Shots . | . . . Rammed 1 | . 1 . Targets Rammed 1 | . 1 . Kicked . | . . . Crushed . | . . . Highest Temperature 193 | . 193 16 Average Temperature 44 | . 49 8 Received Heat Transfer 351 | . 213 138 Siege Activations . | . . . Martial Activations . | . . . Shielding Activations . | . . . Robots Disrupted . | . . . Combat Hostiles . | . . . Robots Corrupted . | . . . Combat Hostiles . | . . . Parts Fried . | . . . Impact Corruptions . | . . . Robots Melted . | . . . Combat Hostiles . | . . . Parts Melted 1 | . . 1 Heat Transferred 1400 | 50 758 592 Parts Sabotaged . | . . . Parts Stolen . | . . . Parts Stripped . | . . . Power Chain Reactions . | . . . Alert | -11 -10 -10 ------- Run | Yrd Mat Sub Maximum Alert Level . | . . . Low Security (%) 100 | 100 100 . Level 1 . | . . . Level 2 . | . . . Level 3 . | . . . Level 4 . | . . . Level 5 . | . . . High Security . | . . . Max Security . | . . . Peak Influence 85 | 10 85 . Initial . | . . . Average 21 | . 24 . Influence Increases 231 | 15 216 . Destroy 0b10 Robot/C 160 | . 160 . Destroy 0b10 Robot/NC 25 | 15 10 . Destroy Leader 40 | . 40 . Successful Hack 4 | . 4 . Destroy Structure 2 | . 2 . Influence Decreases 231 | 15 216 . Time Decay 213 | 15 198 . Lost Part 18 | . 18 . Squads Dispatched 3 | . 3 . Investigation 1 | . 1 . Extermination . | . . . Reinforcement 2 | . 2 . Assault . | . . . Garrison . | . . . Intercept . | . . . Searches Triggered . | . . . Construction Impeded . | . . . Haulers Reinforced . | . . . Active Scanning Responses . | . . . Cargo Convoy Interrupts . | . . . Stealth | -11 -10 -10 --------- Run | Yrd Mat Sub Distress Signals 2 | . 2 . Communications Jammed . | . . . Distress Signals . | . . . Times Spotted 29 | . 16 13 Peak Tracking Total 6 | . 6 5 Tactical Retreats . | . . . Traps | -11 -10 -10 ------- Run | Yrd Mat Sub Traps Triggered 1 | . 1 . Indirectly . | . . . Trap Hack Attempts . | . . . Triggered . | . . . Disarmed . | . . . Reprogrammed . | . . . Reused . | . . . Traps Extracted . | . . . Installed . | . . . Triggered . | . . . Machines | -11 -10 -10 ---------- Run | Yrd Mat Sub Machines Disabled . | . . . Max in Single Turn . | . . . Machines Repaired . | . . . Machines Dismantled . | . . . Machines Sabotaged . | . . . Overloaded Fab Kills . | . . . Hacking | -11 -10 -10 --------- Run | Yrd Mat Sub Machines Accessed 3 | . 3 . Terminals 3 | . 3 . Fabricators . | . . . Repair Stations . | . . . Recycling Units . | . . . Scanalyzers . | . . . Garrison Access . | . . . Total Hacks 6 | . 6 . Successful 3 | . 3 . Failed 3 | . 3 . Catastrophic . | . . . Database Lockouts . | . . . Manual 6 | . 6 . Terminals 6 | . 6 . Fabricators . | . . . Repair Stations . | . . . Recycling Units . | . . . Scanalyzers . | . . . Garrison Access . | . . . Terminal Hacks . | . . . Fabricator Hacks . | . . . Repair Station Hacks . | . . . Recycling Unit Hacks . | . . . Scanalyzer . | . . . Garrison Access Hacks . | . . . Unauthorized Hacks 3 | . 3 . Terminals 3 | . 3 . Skim 3 | . 3 . Fabricators . | . . . Repair Stations . | . . . Recycling Units . | . . . Scanalyzers . | . . . Garrison Access . | . . . Data Cores Recovered . | . . . Used . | . . . Hacking Detections 3 | . 3 . Full Trace Events . | . . . Feedback Events . | . . . Feedback Blocked . | . . . Robot Schematics Acquired . | . . . Robots Built . | . . . Authchips . | . . . Time . | . . . Total Robot Build Rating . | . . . Part Schematics Acquired . | . . . Parts Built . | . . . Authchips . | . . . Time . | . . . Total Part Build Rating . | . . . Part Studies Acquired . | . . . Parts Repaired . | . . . Time . | . . . Parts Recycled . | . . . Recycled Matter . | . . . Retrieved Matter . | . . . Retrieved Components . | . . . Parts Scanalyzed . | . . . Part Schematics Acquired . | . . . Parts Damaged . | . . . Bothacking | -11 -10 -10 ------------ Run | Yrd Mat Sub Used RIF Installer . | . . . Robots Hacked . | . . . Non-combat . | . . . Combat . | . . . Robot Hacks Applied . | . . . Relay Couplers Released . | . . . Fabnet Peak Effective % . | . . . Robots Rewired . | . . . Allies Hacked . | . . . Hacks Repelled . | . . . Allies | -11 -10 -10 -------- Run | Yrd Mat Sub Total Allies . | . . . Largest Group . | . . . Highest-Rated Group . | . . . Highest-Rated Ally . | . . . Total Orders . | . . . Ally Attacks . | . . . Total Damage . | . . . Kills . | . . . Allies Corrupted . | . . . Allies Melted . | . . . Intel | -11 -10 -10 ------- Run | Yrd Mat Sub Active Infowar (turns) 2984 | 21 628 2335 Seismic 2984 | 21 628 2335 Robot Analysis Total . | . . . Derelict Logs Recovered . | . . . Drone Launches . | . . . Drone Recoveries . | . . . Exploration | -11 -10 -10 ------------- Run | Yrd Mat Sub Turns Passed 3077 | 106 628 2343 Spaces Moved 1338 | 55 183 1100 Core 18 | 18 . . Treads 239 | 37 183 19 Legs . | . . . Wheels 1081 | . . 1081 Hover . | . . . Flight . | . . . Fastest Speed 50 | 50 160 130 Average Speed 144 | 124 215 133 Slowest Speed 240 | 160 240 240 Overloaded Moves . | . . . Propulsion Burnouts . | . . . Robots Hopped . | . . . Potential Cave-ins . | . . . Cave-ins Triggered . | . . . Exploration Rate (%) 34 | 4 39 60 Regions Visited 2 Branch Regions 1 Pre-discovered Areas 1 | . . 1 Known Exits Taken . | . . . Unknown Exits Taken 2 | 1 1 . Scrap Searched 6 | . . 6 Spaces Dug . | . . . Terrain Destroyed 1 | . . 1 Melee . | . . . Projectile 1 | . . 1 AOE . | . . . Terrain Rammed . | . . . Walls Destroyed . | . . . Machines Disabled . | . . . Actions | -11 -10 -10 --------- Run | Yrd Mat Sub Total 2324 | 81 337 1906 Wait 847 | 2 98 747 Move 1336 | 54 182 1100 Hop . | . . . Pick Up 32 | 12 12 8 Fast Attach . | . . . Attach 12 | 7 2 3 Detach . | . . . Swap 6 | . 2 4 Drop 2 | . . 2 Fire 88 | 6 40 42 Melee . | . . . Ram . | . . . Kick . | . . . Crush 1 | . 1 . Escape Stasis . | . . . Rewire . | . . . Trap . | . . . Miscellaneous . | . . . Route ------- -11/Scrapyard -10/Materials (discovered 2 exits: [*Mat] / [*Sub]) -10/Subcaves (discovered 2 exits: [*Mat x2]) History --------- Turn | Location | Event 6 | -11/Scrapyard | Discovered new exit (range 16) 107 | -11/Scrapyard | Entered Materials 314 | -10/Materials | Build established: Mutant 610 | -10/Materials | Discovered new exit (range 15) 709 | -10/Materials | Discovered new exit (range 6) 735 | -10/Materials | Entered Subcaves 736 | -10/Subcaves | Approached by a straggling Scientist 864 | -10/Subcaves | Shifting Twisted Machinery released Sub. Optics 867 | -10/Subcaves | Shifting Twisted Machinery released Flamer 1071 | -10/Subcaves | Core integrity fell below 50% 1084 | -10/Subcaves | Lost 3 parts (1p1n1w) 1133 | -10/Subcaves | Shifting Twisted Machinery released Sub. Machine Gun 1167 | -10/Subcaves | A swath of the cavern ceiling suddenly collapsed 1461 | -10/Subcaves | Discovered new exit (range 9) 2664 | -10/Subcaves | Discovered new exit (range 9) 2808 | -10/Subcaves | A swath of the cavern ceiling suddenly collapsed 2918 | -10/Subcaves | Learned location of Zion (-6) 2918 | -10/Subcaves | Met a Zionite searching for "candidates" 3072 | -10/Subcaves | Ambushed by Subdweller buried in earth 3074 | -10/Subcaves | Ambushed by Subdweller buried in earth 3074 | -10/Subcaves | Ambushed by Subdweller buried in earth 3075 | -10/Subcaves | Core integrity fell below 20% 3078 | -10/Subcaves | Destroyed by 5X-SH3(R) with Subdweller Machine Gun Last Messages --------------- here, I feel that you could die at any moment. For your health and safety might I suggest a trip to Zion?" World map updated: -6/Zion. X6-AW9(R): "WEHOME!" X6-AW9(R) destroyed. Acquired 14 matter. Subatomizers dissect the Sub. Power Source. J8-CRY(R) suffers critical hit (Destroy). Destroyed Sub. Machine Gun. J8-CRY(R) suffers critical hit (Destroy). Subatomizers dissect the Sub. Power Source. J8-AN7(R) destroyed. Seismic Detector destroyed. 5X-SH3(R): "NAT20!" Com. Wheel destroyed. YF-51X(R): "ARGHSUB!" XQ-AX2(R): "ARGHSUB!" Subatomizers dissect the Sub. Optics. Sub. Machine Gun destroyed. Map ----- +----------------------------------------------------+ | ?????????????????????????????????????????????????? | | ?????????????????????????????????????????????????? | | ?????????????????????????????????????????????????? | | ?????????????????????????????????????????????????? | | ?????????????????????????????????????????????????? | | ?####??????####??????????????????????????????????? | | # ##????## #??????????????????????????????????? | | #???## #??????????????????????????????????? | | #???# #####??????????????????????????????? | | ###?# ####???????????????????????????? | | #?# ### ???????????????????????? | | #??????# ????????????????????????? | | #????????# """"" ?????###???????????????????? | | ##????????# "# " #???# ##??????????????????? | | ##???????## ###????##???# ##?""??????????????? | | ##??????# ##########???# ##"""?????????????? | | #?????## ""##" "#?### """""?????????????? | | ##???## "" "##;; ""#?????????????? | | ##### " "" " #;; R #??????????????? | | # ""#"# % #???????????????? | | ""###### !| #???????????????? | | # # # """"###??##; ;;; #???????????????? | | ###?### "" "##""??# #???????????????? | | #????### ##" ## ##???????????????? | | ###### ## ## R ##???????????????? | | ### @ ;;#???????????????? | | ### "### ###???????????????? | | # ""#?### #?????????????????? | | ##???#; R ;#?????????????????? | | #???### R ;;#?????????????????? | | #### ##########?????#;; ;# ####?????????????????? | | ???###??????????????# ##????????????????????? | | ????????????????????# #??????????????????????? | | ????????????????????#######??????????????????????? | | ?????????????????????????????????????????????????? | | ?????????????????????????????????????????????????? | | ?????????????????????????????????????????????????? | | ?????????????????????????????????????????????????? | | ?????????????????????????????????????????????????? | | ?????????????????????????????????????????????????? | | ?????????????????????????????????????????????????? | | ?????????????????????????????????????????????????? | | ?????????????????????????????????????????????????? | | ?????????????????????????????????????????????????? | | ?????????????????????????????????????????????????? | | ?????????????????????????????????????????????????? | | | | | | | | | +----------------------------------------------------+ Best States ------------- Heat Dissipation 25 Energy Generation 10 Energy Capacity 250 Matter Stores 300 Matter Capacity 300 Sight Range 16 Terrain Scan Density 10 Evasion (%) 50 Recoil Reduction 2 Item Schematics ----------------- None Robot Schematics ------------------ None Fabricated ------------ Nothing Repaired ---------- Nothing Studied --------- None Alien Tech Used ----------------- None Achievements -------------- None Challenges ------------ None Game ------ Seed CooledBurstGenerator Manual? 0 Play Time 00:15:25 Cumulative 347.8 hours Start 2025.11.30 @ 22:18:57 End 2025.11.30 @ 23:20:29 Sessions 2 Manual Loads 0 Difficulty Rogue Special Mode None Game No. 256 Rogue 256 Adventurer 0 Explorer 0 Win Type - Total 27 Types 14/1/7/2/1/0/0/1/0/1 Lore% 95 Gallery% 88 Achievement% 70 Wizard Run 0 Options --------- Layout 1 ASCII 0 Keyboard 0 Movement Numpad Keybinds 0 Fullscreen 1 Font 24/Proggy Map View 50x35 Zoom Use 0% Tactical HUD 0 Map Filters NONE Filters NONE Steam 1 RUN: fa89c444-a0e1-4f96-a244-349c7e401d09